bitfinex-derivatives/quotes_ETHF0:USTF0_20260213
["timestamp","ask_amount","ask_price","bid_price","bid_amount"]
[1770967010980,10.2695989,1947.5,1946.9,9.54052033]
[1770967017684,10.2695989,1947.3,1946.7,6.00937824]
[1770967017890,10.2695989,1947.1,1946.6,15.55568063]
[1770967018187,10.27615089,1947.1,1946.7,9.54052033]
[1770967020092,10.27615089,1947.1,1946.6,15.55568063]
[1770967020285,0.00655199,1947.1,1946.7,9.54052033]
[1770967020480,10.2695989,1947.3,1946.7,9.54052033]
[1770967020889,9.84979308,1947.1,1946.7,6.00937824]
[1770967021094,9.84979308,1947.2,1946.6,9.67791747]
[1770967021287,9.84979308,1947.3,1946.6,9.67791747]
[1770967021788,9.84979308,1947.4,1946.6,9.67791747]
[1770967021994,9.8534546,1947.4,1946.6,9.68447653]
[1770967023087,9.8534546,1947.4,1946.8,9.67791747]
[1770967024083,11.30136731,1947.4,1946.7,9.67791747]
[1770967024284,9.84979308,1947.1,1946.6,9.68447653]
[1770967028799,9.84979308,1947.1,1946.6,0.00655906]
[1770967028997,9.84979308,1946.9,1946.2,9.67791747]
[1770967029890,9.84979308,1946.9,1946.2,9.68197473]
[1770967031293,9.84979308,1946.7,1946.2,0.00405726]
[1770967031495,9.84979308,1946.5,1945.8,11.03160776]
[1770967031701,9.84979308,1946.3,1945.8,11.03160776]
[1770967031898,0.79628782,1946.2,1945.8,11.03160776]
[1770967032502,0.79628782,1946.2,1945.8,11.03640202]
[1770967032700,10.6460809,1946.2,1945.6,9.67791747]
[1770967032893,10.6460809,1946.1,1945.6,9.67791747]
[1770967033093,9.84979308,1946.1,1945.6,9.67791747]
[1770967033400,9.84979308,1946.1,1945.4,9.67791747]
[1770967033700,11.29770579,1946.1,1945.4,0.00399009]
[1770967034302,9.84979308,1946.1,1945.4,9.68190756]
[1770967034904,9.84979308,1945.9,1945.4,9.68190756]
[1770967035101,9.85371996,1945.9,1945.4,9.68190756]
[1770967035999,9.84979308,1945.7,1945.4,0.00399009]
[1770967036196,0.77480822,1945.8,1945.3,8.79711649]
[1770967036501,0.00392688,1945.9,1945.3,8.79711649]
[1770967037097,0.00392688,1945.9,1945.3,8.80339741]
[1770967038004,9.85371996,1945.9,1945.3,8.80339741]
[1770967038607,0.00392688,1945.9,1945.3,8.80339741]
[1770967039104,9.85371996,1945.9,1945.3,8.80339741]
[1770967039493,0.00392688,1945.9,1945.3,8.80339741]
[1770967039694,9.84979308,1946.4,1945.8,9.67791747]
[1770967039897,9.84979308,1946.4,1945.7,9.67791747]
[1770967040697,9.85643367,1946.4,1945.7,9.67791747]
[1770967041107,11.30434638,1946.4,1945.7,9.67791747]
[1770967041497,11.30434638,1946.4,1945.4,9.67791747]
[1770967041813,9.84979308,1946.1,1945.4,9.67791747]
[1770967042605,9.84979308,1946.3,1945.4,11.12583018]
[1770967042908,9.85643367,1946.4,1945.7,9.67791747]
[1770967043407,0.00664059,1946.4,1945.7,9.67791747]
[1770967044706,9.85643367,1946.4,1945.7,9.67791747]
[1770967045107,0.00664059,1946.4,1945.7,9.67791747]
[1770967045309,9.84979308,1946.8,1945.7,9.67791747]
[1770967046510,9.85581634,1946.8,1945.7,9.67791747]
[1770967047210,9.84979308,1946.6,1945.7,9.67791747]
[1770967048307,0.72862064,1946.5,1945.7,9.67791747]
[1770967048510,9.84979308,1946.4,1945.7,9.67791747]
[1770967049507,9.84979308,1946.4,1945.4,6.00739575]
[1770967049508,9.84979308,1946.4,1945.6,9.67791747]
[1770967050301,9.84979308,1946.2,1945.6,9.67791747]
[1770967050800,9.35211382,1946.6,1945.6,9.67791747]
[1770967051007,0.25703,1946.7,1945.6,9.67791747]
[1770967051008,9.35211382,1946.4,1945.6,9.67791747]
[1770967051207,0.72889716,1946.3,1945.6,9.67791747]
[1770967051402,9.35211382,1946.4,1945.6,9.67791747]
[1770967051715,9.35211382,1946.6,1945.8,9.67729936]
[1770967051898,0.02602326,1946.8,1945.8,9.67729936]
[1770967052399,9.37813708,1946.8,1945.8,9.67729936]
[1770967054710,9.37813708,1946.8,1945.9,9.16628002]
[1770967058411,9.37813708,1946.8,1946.0,9.16628002]
[1770967060213,0.02602326,1946.8,1946.1,11.70328002]
[1770967060412,9.26535905,1946.8,1946.2,9.16628002]
[1770967065012,10.71456727,1946.8,1946.2,9.16628002]
[1770967065213,9.26535905,1946.8,1946.4,9.16628002]
[1770967067122,9.26535905,1946.8,1946.2,9.16628002]
[1770967067322,9.23933579,1946.6,1946.1,2.537]
[1770967067521,9.23933579,1946.6,1946.2,9.16628002]
[1770967068423,10.68854401,1946.6,1946.0,9.16628002]
[1770967069124,1.47523148,1946.8,1945.9,7.04241492]
[1770967069125,9.23933579,1946.4,1945.9,7.04241492]
[1770967069425,9.23933579,1946.4,1946.0,9.16628002]
[1770967070527,9.23933579,1946.0,1945.6,4.50541492]
[1770967070724,9.23933579,1946.0,1945.5,4.50541492]
[1770967070928,9.23933579,1946.0,1945.5,3.0115961]
[1770967071124,9.23933579,1946.3,1945.6,1.46447812]
[1770967071328,9.91903874,1946.2,1945.6,1.46447812]
[1770967071524,9.91903874,1946.1,1945.6,1.46447812]
[1770967071820,9.23933579,1946.5,1945.8,1.84436671]
[1770967072024,9.23933579,1946.3,1945.8,1.84436671]
[1770967072732,9.23933579,1946.3,1945.7,3.0115961]
[1770967073230,9.23933579,1946.3,1945.7,5.3191674]
[1770967074131,9.23933579,1946.3,1945.8,2.28482337]
[1770967075527,9.23933579,1946.3,1945.7,5.40524579]
[1770967075832,9.23933579,1946.3,1945.7,3.0115961]
[1770967076133,9.23933579,1946.1,1945.6,5.40524579]
[1770967076328,9.23933579,1946.1,1945.7,2.36817912]
[1770967077024,9.23933579,1946.1,1945.6,5.37665433]
[1770967078029,9.23933579,1946.1,1945.6,3.0115961]
[1770967078532,9.23933579,1946.1,1945.5,3.0115961]
[1770967078925,9.23933579,1946.1,1945.5,5.29917898]
[1770967079735,9.23933579,1946.1,1945.6,2.26055526]
[1770967080227,9.23933579,1946.1,1945.5,7.78410323]
[1770967080937,9.23933579,1946.1,1945.5,5.5485961]
[1770967081132,9.23933579,1946.1,1945.5,2.537]
[1770967081330,9.23933579,1946.1,1945.6,2.18836324]
[1770967082438,8.94284636,1946.4,1945.6,2.18836324]
[1770967082736,16.651,1946.6,1945.6,2.18836324]
[1770967082737,9.59310935,1946.3,1945.6,2.18836324]
[1770967083037,9.59310935,1946.2,1945.6,2.18836324]
[1770967083239,8.94284636,1946.2,1945.6,2.18836324]
[1770967084036,8.94284636,1946.2,1945.6,2.4036513]
[1770967084638,8.94284636,1946.5,1945.8,2.44431594]
[1770967084836,8.94284636,1946.3,1945.9,2.44431594]
[1770967085634,8.94284636,1946.3,1945.8,4.95458429]
[1770967085940,8.94284636,1946.3,1945.8,2.537]
[1770967086137,8.94284636,1946.3,1945.8,4.95458429]
[1770967087534,8.94284636,1946.3,1945.8,2.537]
[1770967087935,8.94284636,1946.3,1945.8,4.9362442]
[1770967088340,8.94284636,1946.3,1945.8,2.537]
[1770967088742,8.94284636,1946.3,1945.6,5.5485961]
[1770967089042,8.94284636,1946.3,1945.6,7.9105396]
[1770967089744,8.94284636,1946.3,1945.6,5.5485961]
[1770967089945,8.94284636,1946.3,1945.6,2.537]
[1770967090241,8.94284636,1946.3,1945.5,5.34721518]
[1770967090440,8.94284636,1946.1,1945.4,5.5485961]
[1770967090641,8.94284636,1945.9,1945.3,12.42618791]
[1770967090843,8.94284636,1945.9,1945.4,2.36589597]
[1770967091043,8.94284636,1945.9,1945.3,7.92077299]
[1770967091444,8.94284636,1945.9,1945.3,5.55487702]
[1770967092748,8.94284636,1945.9,1945.3,7.7701861]
[1770967092947,10.39343228,1945.9,1945.3,7.7701861]
[1770967093144,4.53041989,1946.4,1945.3,7.7701861]
[1770967093145,8.94284636,1945.4,1945.3,0.00628092]
[1770967093340,8.94668728,1945.4,1945.3,0.00628092]
[1770967094242,8.94284636,1945.6,1945.3,0.00628092]
[1770967095349,8.94698566,1945.6,1945.3,0.00628092]
[1770967095846,8.94698566,1945.6,1945.0,0.1]
[1770967096545,8.94284636,1945.4,1945.0,0.1]
[1770967096750,8.94284636,1945.4,1945.0,0.10504111]
[1770967097446,8.94284636,1945.4,1945.0,2.32732408]
[1770967098552,0.0041393,1945.6,1945.4,2.25740444]
[1770967098852,8.94284636,1945.8,1945.3,3.70799036]
[1770967099049,8.94284636,1945.8,1945.5,2.25740444]
[1770967099258,8.94284636,1945.9,1945.4,3.6848417]
[1770967099649,8.9490013,1945.9,1945.4,3.6848417]
[1770967099844,8.9490013,1945.9,1945.5,2.23195391]
[1770967100248,8.9490013,1945.9,1945.5,3.68253983]
[1770967100457,8.94284636,1946.2,1945.7,3.65350318]
[1770967100656,8.94284636,1946.2,1945.6,1.92904632]
[1770967100955,8.94284636,1946.0,1945.4,6.39122834]
[1770967101550,8.94926055,1946.0,1945.4,6.39122834]
[1770967102443,8.94926055,1946.0,1945.6,3.42388521]
[1770967102855,8.94926055,1946.0,1945.6,1.45058592]
[1770967103657,8.94926055,1946.0,1945.6,1.94844252]
[1770967103850,0.00641419,1946.0,1945.8,1.94844252]
[1770967104051,8.94284636,1946.2,1945.9,3.39902844]
[1770967104252,8.94284636,1946.2,1945.9,1.94844252]
[1770967104558,8.94284636,1946.2,1945.8,1.45058592]
[1770967104760,8.94284636,1946.2,1945.8,3.35086646]
[1770967104950,8.94652407,1946.2,1945.8,3.35086646]
[1770967105953,8.94652407,1946.2,1945.8,1.90028054]
[1770967107761,8.94284636,1946.3,1946.0,3.28826743]
[1770967107954,8.94284636,1946.7,1946.1,7.17996828]
[1770967108153,8.94284636,1946.5,1946.0,8.26638236]
[1770967108747,8.94664558,1946.5,1946.0,9.71696828]
[1770967112062,8.94664558,1946.5,1946.0,7.17996828]
[1770967112253,8.94664558,1946.5,1945.9,2.537]
[1770967112555,8.866888,1946.3,1945.9,2.537]
[1770967112863,8.866888,1946.3,1945.8,2.537]
[1770967113660,8.866888,1946.0,1945.4,8.40576575]
[1770967113852,8.866888,1946.4,1945.7,8.40576575]
[1770967114058,8.866888,1946.2,1945.7,8.40576575]
[1770967121068,0.00379922,1946.5,1945.7,8.40576575]
[1770967121268,9.48515864,1946.4,1945.7,8.40576575]
[1770967125784,9.48515864,1946.4,1946.1,8.08532293]
[1770967126084,9.48895786,1946.5,1946.1,8.08532293]
[1770967126380,9.48895786,1946.5,1945.8,5.95539676]
[1770967126592,9.48895786,1946.5,1945.9,8.06198507]
[1770967127983,9.48895786,1946.5,1945.8,12.56526966]
[1770967129784,9.48895786,1946.5,1945.8,10.51281067]
[1770967129982,9.48895786,1946.5,1945.8,4.50541492]
[1770967130383,9.48515864,1946.3,1945.8,4.50541492]
[1770967130682,9.48515864,1946.3,1945.8,12.52035053]
[1770967132786,9.48515864,1946.3,1945.8,4.50541492]
[1770967132985,10.93514048,1946.3,1945.6,4.50541492]
[1770967133487,9.48515864,1946.1,1945.6,12.42339098]
[1770967133680,9.48515864,1946.4,1945.7,7.91594207]
[1770967133885,10.08850096,1946.3,1945.7,7.91594207]
[1770967134089,9.48515864,1946.3,1945.7,7.91594207]
[1770967135182,9.48515864,1946.3,1945.8,7.98523018]
[1770967136188,9.48515864,1946.4,1945.9,7.9607444]
[1770967138877,9.48515864,1946.4,1945.8,4.50541492]
[1770967139177,9.48515864,1946.4,1945.8,12.32687613]
[1770967139594,10.93514048,1946.4,1945.7,4.50541492]
[1770967139885,9.48515864,1946.2,1945.6,18.31021843]
[1770967140090,9.48515864,1946.2,1945.6,12.30282268]
[1770967140293,10.93514048,1946.2,1945.6,4.50541492]
[1770967140487,9.48515864,1946.2,1945.5,4.50541492]
[1770967140687,9.48515864,1946.2,1945.5,12.30567398]
[1770967141290,8.83135385,1946.0,1945.5,4.50541492]
[1770967141487,8.83135385,1946.0,1945.5,12.28385543]
[1770967142494,8.83135385,1946.0,1945.5,4.50541492]
[1770967144887,8.83135385,1946.0,1945.6,7.73969197]
[1770967145085,8.83135385,1946.3,1945.6,9.18967381]
[1770967145289,8.83135385,1946.3,1945.7,7.71824664]
[1770967145588,8.83135385,1946.3,1945.6,4.50541492]
[1770967145993,8.83135385,1946.1,1945.7,7.71621358]
[1770967148696,8.83135385,1946.4,1945.7,7.71621358]
[1770967148895,9.41834424,1946.3,1945.7,7.71621358]
[1770967149095,8.83135385,1946.3,1945.7,7.71621358]
[1770967152390,8.83135385,1946.4,1945.8,8.97434441]
[1770967153399,8.83135385,1946.4,1945.8,7.52436257]
[1770967154901,8.83135385,1946.4,1946.0,7.29333883]
[1770967156097,8.83135385,1946.4,1945.9,7.27108323]
[1770967156500,8.83135385,1946.4,1945.8,11.74117642]
[1770967156803,8.83135385,1946.4,1945.8,4.50541492]
[1770967157300,8.83135385,1946.4,1945.9,7.21538446]
[1770967157802,8.83135385,1946.4,1945.8,4.50541492]
[1770967158604,8.83135385,1946.4,1945.5,4.50541492]
[1770967158806,8.83135385,1946.2,1945.4,26.59021363]
[1770967159004,8.83135385,1946.2,1945.5,7.26479871]
[1770967160096,8.83135385,1946.2,1945.4,19.32541492]
[1770967160303,8.83135385,1946.2,1945.4,22.04272765]
[1770967161204,8.83135385,1946.2,1945.3,4.50541492]
[1770967161406,8.83135385,1946.2,1945.3,11.67570444]
[1770967161699,8.83135385,1946.2,1945.4,7.17028952]
[1770967162499,8.83135385,1946.2,1945.7,7.14864097]
[1770967163304,8.83135385,1946.4,1945.7,7.14864097]
[1770967163505,8.83135385,1946.4,1945.9,6.99752968]
[1770967164198,0.00379922,1946.5,1945.9,6.99752968]
[1770967164397,8.83515307,1946.5,1945.9,6.99752968]
[1770967164597,0.00379922,1946.5,1946.1,7.00586076]
[1770967164797,8.83135385,1946.7,1946.1,7.00586076]
[1770967165803,8.83750002,1946.7,1946.1,7.00586076]
[1770967169200,0.02,1946.8,1946.3,7.0355634]
[1770967170007,8.85135385,1946.8,1946.3,7.0355634]
[1770967170306,8.85724547,1946.8,1946.3,7.0355634]
[1770967173509,8.85724547,1946.8,1946.2,14.876]
[1770967173807,8.85724547,1946.8,1946.2,6.85180272]
[1770967174910,8.85724547,1946.8,1946.2,8.30080403]
[1770967175310,8.85724547,1946.8,1946.3,1.44900131]
[1770967175508,8.85724547,1946.8,1946.3,8.35879759]
[1770967175708,8.85724547,1946.8,1946.2,8.35715812]
[1770967176303,0.02589162,1946.8,1946.5,6.88937023]
[1770967176610,8.42344908,1946.9,1946.5,6.89507996]
[1770967177312,8.42344908,1946.9,1946.5,8.34408127]
[1770967177611,8.42750987,1946.9,1946.5,8.34408127]
[1770967177804,8.42750987,1946.9,1946.5,0.00570973]
[1770967179114,8.42750987,1946.9,1946.5,6.82416028]
[1770967180213,8.42750987,1946.9,1946.5,0.00570973]
[1770967180610,9.87651118,1946.9,1946.2,1.44900131]
[1770967180808,9.87651118,1946.9,1946.1,11.29020688]
[1770967180809,9.87651118,1946.9,1946.1,12.73920819]
[1770967181109,9.87651118,1946.9,1946.1,8.23379327]
[1770967181512,8.42344908,1946.7,1946.1,8.23379327]
[1770967181714,8.42344908,1946.7,1946.1,8.23753875]
[1770967182410,9.87245039,1946.7,1946.1,0.00374548]
[1770967183118,9.87245039,1946.5,1945.8,11.25177085]
[1770967183316,9.87245039,1946.5,1945.8,6.74635593]
[1770967183713,8.42344908,1946.3,1945.6,27.63994968]
[1770967183909,8.42344908,1946.3,1945.6,12.68094968]
[1770967184215,8.42344908,1946.3,1945.6,12.68746696]
[1770967185217,8.42344908,1946.3,1945.6,8.18205204]
[1770967185910,9.87245039,1946.3,1945.6,8.18205204]
[1770967186113,8.42344908,1946.3,1945.6,8.18205204]
[1770967187617,8.42344908,1946.3,1945.8,7.98058787]
[1770967188618,9.87245039,1946.3,1945.6,6.51100208]
[1770967188822,8.42344908,1946.1,1945.6,0.00651728]
[1770967189021,9.87245039,1946.1,1945.6,0.00651728]
[1770967190021,8.42344908,1946.1,1945.6,0.00651728]
[1770967190413,8.42344908,1946.1,1945.4,7.95348611]
[1770967190618,8.44344908,1946.1,1945.4,7.95348611]
[1770967190928,8.44344908,1946.1,1945.4,6.5044848]
[1770967191424,8.44344908,1946.1,1945.4,6.51015773]
[1770967193126,8.44344908,1946.1,1945.4,6.40956566]
[1770967193628,8.42344908,1946.3,1945.8,6.38635624]
[1770967196234,8.42344908,1946.3,1945.5,5.76435894]
[1770967199733,8.42344908,1946.3,1945.8,5.53326037]
[1770967201037,7.961617,1946.8,1945.8,5.53326037]
[1770967201541,7.961617,1946.8,1946.1,5.53477602]
[1770967202531,7.961617,1946.8,1945.9,5.5172452]
[1770967203631,7.961617,1946.8,1945.8,4.50541492]
[1770967203839,7.961617,1946.8,1945.7,5.67434651]
[1770967204242,7.961617,1946.8,1945.7,10.17976143]
[1770967204632,7.961617,1946.8,1945.8,5.81950633]
[1770967206131,0.00406079,1946.9,1945.5,4.5195675]
[1770967206132,7.961617,1946.1,1945.5,4.5195675]
[1770967206333,7.961617,1946.1,1945.5,5.78521106]
[1770967207142,7.961617,1946.1,1945.4,0.00567293]
[1770967207343,7.961617,1946.1,1945.4,5.86654426]
[1770967211444,7.961617,1946.1,1945.4,0.00567293]
[1770967211645,7.961617,1946.1,1945.4,5.84519363]
[1770967212946,7.961617,1946.1,1945.4,7.29544739]
[1770967213638,7.961617,1946.1,1945.4,5.84519363]
[1770967213943,7.961617,1946.1,1945.4,0.00567293]
[1770967215046,7.961617,1945.9,1945.4,0.00567293]
[1770967215242,7.961617,1945.9,1945.4,5.73702529]
[1770967215443,7.961617,1945.9,1945.5,7.18160612]
[1770967215740,7.961617,1945.9,1945.5,7.18076225]
[1770967215944,7.961617,1945.9,1945.5,1.45025376]
[1770967216340,7.961617,1945.9,1945.4,5.73618142]
[1770967216540,7.961617,1945.9,1945.4,0.00567293]
[1770967218343,7.961617,1945.7,1945.1,6.98608311]
[1770967218540,7.961617,1945.7,1945.1,8.43633687]
[1770967218744,7.961617,1945.7,1945.2,1.45025376]
[1770967218945,7.961617,1945.7,1945.2,8.43701251]
[1770967219441,7.961617,1945.7,1945.2,6.99118434]
[1770967219944,9.41187076,1945.7,1945.2,0.00442559]
[1770967220140,9.41187076,1945.5,1945.0,0.1]
[1770967220646,7.961617,1945.5,1945.0,0.1]
[1770967221243,7.961617,1945.5,1945.0,0.10587982]
[1770967221244,9.41581966,1945.5,1945.0,0.10587982]
[1770967222850,7.9655659,1945.5,1945.0,0.10587982]
[1770967225152,7.9655659,1945.5,1944.5,12.86298706]
[1770967225349,7.9655659,1945.5,1944.6,6.83869546]
[1770967226150,7.9655659,1945.5,1944.8,6.83818202]
[1770967230353,0.0039489,1945.5,1944.8,6.83818202]
[1770967231150,8.35986878,1945.5,1944.8,6.83818202]
[1770967232957,0.0039489,1945.5,1944.8,6.83818202]
[1770967233560,8.35591988,1945.4,1944.8,6.83818202]
[1770967234049,8.35986878,1945.5,1944.8,6.83818202]
[1770967234952,8.35986878,1945.5,1944.9,6.60142383]
[1770967236259,8.35986878,1945.5,1945.0,6.58468058]
[1770967238661,8.35986878,1945.5,1944.8,11.27258208]
[1770967239162,8.35986878,1945.5,1944.9,6.7394505]
[1770967240259,8.35986878,1945.5,1944.7,6.00739575]
[1770967240463,8.35986878,1945.5,1944.6,7.7619552]
[1770967244968,8.35986878,1945.5,1944.9,7.75818177]
[1770967254276,7.9368426,1945.5,1945.1,7.75818177]
[1770967259876,7.9328937,1945.8,1945.1,7.75818177]
[1770967260065,7.9328937,1945.8,1945.1,9.20902643]
[1770967260672,7.99579283,1946.2,1945.6,8.31928027]
[1770967260978,7.99993422,1946.2,1945.6,8.31928027]
[1770967261478,7.99993422,1946.2,1945.4,14.37615779]
[1770967261672,9.45077888,1946.2,1945.3,55.17615779]
[1770967261865,9.45077888,1946.2,1945.4,8.31928027]
[1770967262582,7.99993422,1946.2,1945.4,8.31928027]
[1770967265376,7.99993422,1946.2,1945.3,8.31928027]
[1770967266682,9.45077888,1946.2,1945.3,8.31928027]
[1770967269281,7.99993422,1946.2,1945.5,8.31928027]
[1770967269579,7.99993422,1946.2,1945.7,8.31928027]
[1770967274387,7.99993422,1946.2,1945.4,4.51900377]
[1770967274590,7.99993422,1946.2,1945.5,8.31928027]
[1770967276388,7.99993422,1946.2,1945.5,9.77012493]
[1770967277486,0.00414139,1946.2,1945.8,8.31928027]
[1770967277992,7.99579283,1946.4,1945.8,8.31928027]
[1770967278485,7.99579283,1946.4,1945.7,8.31928027]
[1770967278984,8.00001287,1946.4,1945.7,8.31928027]
[1770967279589,8.00001287,1946.4,1945.7,9.77012493]
[1770967280992,8.00001287,1946.4,1945.7,8.31928027]
[1770967283193,8.00001287,1946.4,1945.7,9.77012493]
[1770967283396,8.00001287,1946.4,1945.7,8.31928027]
[1770967286196,8.00001287,1946.4,1945.8,8.31928027]
[1770967289906,8.00001287,1946.4,1945.7,12.83828404]
[1770967291012,8.00001287,1946.4,1945.8,7.60139654]
[1770967292505,8.00001287,1946.4,1945.8,4.51900377]
[1770967292506,8.02001287,1946.4,1945.8,4.51900377]
[1770967292812,8.02001287,1946.4,1945.9,7.60139654]
[1770967295816,8.02001287,1946.4,1945.7,12.0001462]
[1770967296019,8.02001287,1946.4,1945.8,7.48114243]
[1770967296314,4.0858505,1946.4,1946.0,7.48114243]
[1770967296515,4.0858505,1946.4,1946.0,7.48700379]
[1770967296516,0.02253779,1946.4,1946.0,7.48700379]
[1770967296913,7.44683934,1946.5,1946.0,7.48700379]
[1770967297122,7.44683934,1946.8,1946.4,7.48114243]
[1770967297918,7.45220989,1946.8,1946.4,7.48114243]
[1770967298417,0.00537055,1946.8,1946.4,7.48114243]
[1770967298725,7.45220989,1946.8,1946.4,7.48114243]
[1770967299018,0.00537055,1946.8,1946.6,7.48114243]
[1770967299218,7.44683934,1946.9,1946.5,8.92988773]
[1770967299418,7.44683934,1946.9,1946.5,7.48114243]
[1770967299720,7.44683934,1947.1,1946.7,7.48114243]
[1770967300116,7.45248725,1947.1,1946.7,7.48114243]
[1770967301718,8.90123255,1947.1,1946.4,1.4487453]
[1770967301920,8.89558464,1946.9,1946.3,48.28114243]
[1770967302225,8.89558464,1946.9,1946.3,7.48114243]
[1770967302923,7.44683934,1946.9,1946.3,7.48114243]
[1770967303420,7.44683934,1946.9,1946.3,8.92988773]
[1770967303626,7.44683934,1946.9,1946.5,8.92988773]
[1770967304825,7.45248725,1947.1,1946.7,7.48114243]
[1770967305025,7.44683934,1947.2,1946.9,7.48114243]
[1770967305221,7.44683934,1947.2,1946.7,7.48114243]
[1770967305826,8.89558464,1947.2,1946.7,7.48114243]
[1770967306028,8.90100534,1947.2,1946.7,7.48114243]
[1770967306620,8.90100534,1947.2,1946.5,7.48114243]
[1770967306621,7.44683934,1947.0,1946.5,7.48114243]
[1770967309525,7.44683934,1947.0,1946.5,8.92988773]
[1770967310531,7.44683934,1947.0,1946.5,7.48114243]
[1770967310929,7.45226004,1947.2,1946.7,7.48114243]
[1770967311928,8.90100534,1947.2,1946.6,7.48114243]
[1770967312124,8.90100534,1947.2,1946.5,1.4487453]
[1770967312125,7.44683934,1947.0,1946.5,7.48114243]
[1770967312328,8.89558464,1947.0,1946.3,7.48114243]
[1770967312528,8.89558464,1947.0,1946.3,8.92988773]
[1770967313030,8.89558464,1947.0,1946.2,19.54900377]
[1770967313031,7.44683934,1947.0,1946.5,7.48114243]
[1770967314033,8.89558464,1947.0,1946.3,8.92988773]
[1770967314331,8.89558464,1947.0,1946.2,19.54900377]
[1770967314332,7.45226004,1947.2,1946.6,7.48114243]
[1770967314531,7.45226004,1947.2,1946.6,8.92988773]
[1770967315330,8.90100534,1947.2,1946.6,7.48114243]
[1770967315529,7.44683934,1947.0,1946.6,7.48114243]
[1770967316232,7.44683934,1947.0,1946.5,7.48114243]
[1770967316432,7.44683934,1947.0,1946.5,8.92988773]
[1770967318529,1.454166,1947.2,1946.9,8.92988773]
[1770967318530,0.0054207,1947.2,1946.9,8.92988773]
[1770967318728,7.45226004,1947.2,1946.8,7.48114243]
[1770967319532,7.45226004,1947.2,1946.7,7.48114243]
[1770967319729,7.44683934,1947.0,1946.5,7.48114243]
[1770967320128,8.89558464,1947.0,1946.4,7.48114243]
[1770967320434,7.44683934,1946.8,1946.2,12.0001462]
[1770967320633,9.02891955,1946.6,1946.0,15.04886136]
[1770967321236,9.02891955,1946.4,1945.8,7.3466178]
[1770967321434,7.58017425,1946.4,1945.8,7.3466178]
[1770967321630,7.58017425,1946.4,1946.0,7.3466178]
[1770967321838,1.4487453,1946.7,1946.0,7.3466178]
[1770967321839,7.58017425,1946.6,1946.0,7.3466178]
[1770967322336,7.58017425,1946.6,1946.0,7.35037485]
[1770967324440,7.58017425,1946.7,1946.0,7.35037485]
[1770967325841,7.58017425,1946.7,1946.0,0.00375705]
[1770967326140,7.58017425,1946.7,1946.0,7.35037485]
[1770967326643,7.58017425,1946.5,1946.0,0.00375705]
[1770967330344,7.58017425,1946.5,1946.0,7.35037485]
[1770967331744,7.58017425,1946.5,1946.0,0.00375705]
[1770967332641,7.58017425,1946.5,1945.5,19.56800377]
[1770967332835,7.58017425,1946.5,1945.4,7.3466178]
[1770967333547,7.58017425,1946.3,1945.4,7.3466178]
[1770967333849,7.58017425,1946.3,1945.4,0.00543527]
[1770967334037,7.83727425,1946.2,1945.1,7.3466178]
[1770967334342,7.58017425,1946.0,1945.1,7.3466178]
[1770967335137,7.58017425,1946.0,1945.1,7.35268146]
[1770967338951,7.58017425,1945.7,1945.1,0.00606366]
[1770967339148,7.5852678,1945.7,1944.7,7.3466178]
[1770967339346,7.58017425,1945.5,1944.7,7.3466178]
[1770967339547,7.58017425,1945.5,1944.4,7.3466178]
[1770967339749,7.58017425,1945.5,1944.5,7.3466178]
[1770967340250,7.58017425,1945.5,1944.5,7.3505082]
[1770967340749,7.58017425,1945.2,1944.5,0.0038904]
[1770967341156,7.58017425,1945.2,1944.4,7.3466178]
[1770967341157,7.58017425,1945.2,1944.1,7.3466178]
[1770967342356,7.58017425,1945.2,1944.4,7.3466178]
[1770967345456,7.58017425,1945.4,1944.4,7.3466178]
[1770967345654,7.58017425,1945.4,1944.6,7.3466178]
[1770967347155,7.58017425,1945.6,1944.6,7.3466178]
[1770967347654,7.58017425,1945.6,1944.8,7.3466178]
[1770967349953,7.58017425,1945.5,1944.8,7.3466178]
[1770967355759,7.58017425,1945.5,1944.4,6.87551839]
[1770967358670,7.58017425,1945.5,1944.6,6.87551839]
[1770967363366,7.58017425,1945.5,1944.7,6.87551839]
[1770967364077,6.60279393,1945.7,1944.7,6.87551839]
[1770967364372,6.60279393,1945.7,1944.8,6.87551839]
[1770967365375,6.60279393,1945.7,1944.9,6.87551839]
[1770967366568,0.00509355,1945.7,1944.9,6.87551839]
[1770967366774,0.00509355,1945.7,1945.2,6.87551839]
[1770967366969,0.00509355,1945.7,1945.2,11.39452216]
[1770967367170,0.00509355,1945.7,1945.3,6.87551839]
[1770967370176,6.60279393,1945.7,1945.2,6.87551839]
[1770967372876,0.00509355,1945.7,1945.2,6.87551839]
[1770967375076,6.59770038,1946.0,1945.2,6.87551839]
[1770967375981,6.60215884,1946.0,1945.2,6.87551839]
[1770967376874,6.60215884,1946.0,1945.3,6.87551839]
[1770967380377,6.60215884,1946.0,1945.2,6.87551839]
[1770967382885,6.85928884,1946.0,1945.1,6.86285175]
[1770967383078,6.85928884,1946.0,1945.0,11.38185552]
[1770967384178,6.85928884,1946.0,1945.0,6.86285175]
[1770967385988,6.85928884,1946.0,1945.1,6.86285175]
[1770967392188,6.50312876,1945.8,1945.1,6.86285175]
[1770967393289,6.50312876,1945.8,1945.2,6.86285175]
[1770967411595,6.46258328,1945.6,1945.1,11.08727062]
[1770967411799,6.46258328,1945.6,1945.1,6.56826685]
[1770967412394,6.46258328,1945.6,1945.0,11.08727062]
[1770967412689,9.52585531,1945.8,1945.1,6.56826685]
[1770967412890,0.53212728,1945.7,1945.1,6.56826685]
[1770967413089,6.46258328,1945.8,1945.1,6.56826685]
[1770967413298,0.53207381,1945.7,1945.1,11.08727062]
[1770967413599,6.46258328,1945.8,1945.2,6.56826685]
[1770967413799,6.99466818,1945.7,1945.2,6.56826685]
[1770967413999,6.46258328,1945.7,1945.2,6.56826685]
[1770967423005,7.91345396,1945.7,1945.2,6.56826685]
[1770967424106,7.93345396,1945.7,1945.2,6.56826685]
[1770967427508,7.93345396,1945.7,1945.4,6.54930465]
[1770967427509,0.02,1945.7,1945.4,6.54930465]
[1770967427713,0.02,1945.7,1945.4,8.00017533]
[1770967428010,9.6013706,1946.0,1945.4,8.00017533]
[1770967428209,0.53192546,1945.9,1945.6,8.00017533]
[1770967428406,6.5166364,1946.0,1945.6,6.55431656]
[1770967428601,6.51217794,1945.6,1945.3,4.51900377]
[1770967428911,6.51217794,1945.7,1945.4,6.54930465]
[1770967429306,6.51217794,1945.8,1945.4,6.54930465]
[1770967429811,6.51217794,1945.9,1945.4,6.55310881]
[1770967431512,7.96304862,1945.9,1945.4,6.55310881]
[1770967432308,6.51217794,1945.9,1945.4,6.55310881]
[1770967432512,7.96304862,1945.9,1945.4,6.55310881]
[1770967438720,6.51217794,1945.7,1945.4,0.00380416]
[1770967438916,6.51217794,1945.7,1945.3,6.54930465]
[1770967439921,6.51217794,1945.7,1945.3,6.55503189]
[1770967440114,6.51217794,1945.7,1945.3,0.00572724]
[1770967440417,7.96304862,1945.7,1945.3,0.00572724]
[1770967440606,7.96304862,1945.7,1945.2,6.54930465]
[1770967441821,7.96304862,1945.7,1945.2,6.55349385]
[1770967445524,7.96304862,1945.7,1945.2,0.0041892]
[1770967445726,7.96304862,1945.7,1945.2,6.30770825]